Cogmind - Beta 16 --- EXPLORER MODE // 2025.11.12 @ 22:23:43 Player: Cash Money Result: Destroyed by P-80 Master with Gamma Rifle Performance ------------- Evolutions (9) 4500 Regions Visited (23) 4600 Robots Destroyed (435) 2175 Value Destroyed (23726) 23726 Prototype IDs (40) 800 Alien Tech Used (11) 2200 Bonus (12860) 12860 TOTAL SCORE: 50861 Bonus ------- Triggered High Security 500 High Alert Combat Kills 3624 Follower Combat Kills 5418 Network Hubs Disabled 200 Met Imprinter 300 Was Imprinted 300 Met Zhirov 300 A7 Reached Mainframe 300 Met R17 at Cetus 500 Read Decrypted Archives 300 Used Core Reset Matrix 3000 Scanned by Researcher 500 Friendly Fire -2382 Cogmind --------- Core Integrity 0/1600 Matter 300/300 Energy 100/100 System Corruption 0% +Membrane Temperature Cool (0) Movement Core (50) Location -1/Command Parts ------- > --- POWER (3) -------- (None) > --- PROPULSION (6) --- (None) > --- UTILITY (14) ----- (None) > --- WEAPON (3) ------- (None) > --- INVENTORY (5) ---- Light Quantum Reactor Zionite Phaser-H Heavy Disruptor Cannon Shock Maul Peak State ------------ > --- POWER ------------ Particle Reactor Particle Reactor Particle Reactor > --- PROPULSION ------- Zionite Composite Leg II Zionite Composite Leg II Enhanced Biometal Leg Centrium Leg Heavy Shield Leg > --- UTILITY ---------- Advanced Power Amplifier Advanced Cryofiber Web Advanced Cooling System Advanced Cooling System Large Storage Unit Zionite Biocell 0b10 Decoder Chip [Generic] Advanced Targeting Computer Improved Particle Charger Advanced Reaction Control System Zionite Weapon Casing Phase Armor Remote Shield > --- WEAPON ----------- Zionite Phaser-M Enhanced Nova Cannon Enhanced Nova Cannon > --- INVENTORY -------- Zionite Light DM Reactor Zionite Composite Leg II Biometal Leg Improved Thunder Leg Advanced Cooling System Matter Compressor Advanced Force Field Dimensional Node Initializer Supercharged TR Terrabomb Tesla Rifle Quantum Rifle Precision Rocket Launcher Shock Maul Sigix Corpse [Rating: 208] Favorites ----------- Power Particle Reactor Engine Heavy Ion Engine Power Core Fission Core Reactor Particle Reactor Propulsion Carbon-fiber Leg Leg Carbon-fiber Leg Utility Large Storage Unit Device Advanced Cooling System Storage Large Storage Unit Processor 0b10 Decoder Chip [Generic] Hackware Advanced System Shield Protection Weapon Shielding Artifact Phase Armor Weapon Shock Maul Energy Gun Improved EM Shotgun Energy Cannon Improved EM Pulse Cannon Ballistic Gun Assault Rifle Ballistic Cannon Heavy Gauss Cannon Launcher Precision Rocket Launcher Impact Weapon Shock Maul Build | -11 -10 -10 -9 -9 -8 -7 -6 -6 -6 -6 -5 -5 -5 -5 -5 -5 -4 -3 -3 -3 -2 -1 -1 ------- Run | Yrd Mat Min Mat Sto Mat Fac Fac Low Low Zio Pro Fac Ext Cet Arc Hub Fac Res Qua Sec Res Acc Com Slots Evolved 19 | . 1 . 2 . 2 2 2 . . . . 2 . . . . 2 2 . . 2 2 . Power 2 | . . . . . 1 . . . . . . 1 . . . . . . . . . . . Propulsion 4 | . . . 2 . . . . . . . . 1 . . . . . 1 . . . . . Utility 12 | . 1 . . . 1 1 2 . . . . . . . . . 2 1 . . 2 2 . Weapon 1 | . . . . . . 1 . . . . . . . . . . . . . . . . . Parts Attached 270 | 7 4 2 9 13 12 3 15 1 3 . . 13 7 7 . 4 24 24 31 2 15 65 9 Power 35 | 1 . 1 . 3 1 . 2 . . . . 3 3 1 . . 3 6 1 . 2 7 1 Engine 8 | 1 . . . 3 1 . 2 . . . . . 1 . . . . . . . . . . Core 6 | . . 1 . . . . . . . . . 3 1 . . . 1 . . . . . . Reactor 21 | . . . . . . . . . . . . . 1 1 . . 2 6 1 . 2 7 1 Propulsion 61 | 2 . 1 3 2 7 1 1 . 1 . . 3 2 1 . 2 6 7 7 . 2 13 . Treads . | . . . . . . . . . . . . . . . . . . . . . . . . Leg 61 | 2 . 1 3 2 7 1 1 . 1 . . 3 2 1 . 2 6 7 7 . 2 13 . Wheel . | . . . . . . . . . . . . . . . . . . . . . . . . Hover . | . . . . . . . . . . . . . . . . . . . . . . . . Flight . | . . . . . . . . . . . . . . . . . . . . . . . . Utility 123 | 2 3 . 3 3 4 1 7 1 2 . . 4 . 3 . 1 12 7 19 1 9 36 5 Device 86 | 1 1 . 2 3 1 . 6 . . . . 3 . . . 1 11 6 13 1 6 29 2 Storage 10 | . 1 . 1 . 2 . . . . . . . . 1 . . 1 . . . 2 1 1 Processor 11 | 1 . . . . . . . . 1 . . . . . . . . 1 3 . . 4 1 Hackware 1 | . . . . . . . . . . . . . . . . . . . . . . . 1 Protection 14 | . 1 . . . 1 1 1 1 1 . . 1 . 2 . . . . 2 . 1 2 . Artifact 1 | . . . . . . . . . . . . . . . . . . . 1 . . . . Weapon 51 | 2 1 . 3 5 . 1 5 . . . . 3 2 2 . 1 3 4 4 1 2 9 3 Energy Gun 25 | 1 . . 2 3 . . 1 . . . . . 2 2 . . 1 3 4 . 1 4 1 Energy Cannon 16 | . . . . . . . 3 . . . . 3 . . . 1 1 1 . 1 1 5 . Ballistic Gun 2 | 1 . . . . . . . . . . . . . . . . 1 . . . . . . Ballistic Cannon 3 | . . . 1 . . . . . . . . . . . . . . . . . . . 2 Launcher 2 | . 1 . . 1 . . . . . . . . . . . . . . . . . . . Special Weapon . | . . . . . . . . . . . . . . . . . . . . . . . . Impact Weapon 3 | . . . . 1 . 1 1 . . . . . . . . . . . . . . . . Slashing Weapon . | . . . . . . . . . . . . . . . . . . . . . . . . Piercing Weapon . | . . . . . . . . . . . . . . . . . . . . . . . . Special Melee Weapon . | . . . . . . . . . . . . . . . . . . . . . . . . Unidentified Prototypes 42 | . . . . 1 . 1 1 . . . . 1 2 7 . . 2 5 8 2 . 12 . Corrupted Parts 1 | . . . . . . . . . . . . 1 . . . . . . . . . . . System Corruption 3 | . . . . . . . . . . . . 3 . . . . . . . . . . . Parts Lost 55 | . . . . . 1 . 2 . . . . 1 . . . 3 5 3 . 2 2 16 20 Power 5 | . . . . . . . . . . . . . . . . . 1 1 . . . 1 2 Propulsion 13 | . . . . . 1 . 1 . . . . 1 . . . 1 1 . . . 1 . 7 Utility 30 | . . . . . . . 1 . . . . . . . . 2 2 2 . . 1 15 7 Weapon 7 | . . . . . . . . . . . . . . . . . 1 . . 2 . . 4 Highest Loss Streak 19 | . . . . . 1 . 2 . . . . 1 . . . 2 3 2 . 1 1 6 19 To Critical Strikes . | . . . . . . . . . . . . . . . . . . . . . . . . Average Backups 11 | 1 2 5 4 4 7 13 14 14 12 8 8 10 15 14 14 14 14 13 13 14 13 13 11 Power . | . 1 1 . . . 1 1 1 1 . . . 1 1 1 1 . 1 . . . 1 2 Propulsion 2 | . . . . . . 2 2 . . . . . . 2 2 2 4 3 3 3 3 3 2 Utility 5 | . . 2 2 2 2 4 7 10 8 6 6 7 10 9 9 8 7 6 6 4 3 4 1 Weapon 2 | . . 2 2 2 3 5 3 3 2 2 2 2 2 2 2 2 2 2 2 2 1 3 4 Tool/Special . | . . . . . . . . . . . . . . . . . . . . . . . . Unused Backups 36 | . 1 . 1 3 1 1 8 . 4 . 1 2 1 2 . . 2 1 3 . . 2 3 Power 4 | . . . 1 . . . . . 1 . . . . . . . . . . . . . 2 Propulsion 4 | . . . . . . . 1 . . . . . . . . . 1 1 1 . . . . Utility 20 | . . . . 2 1 . 4 . 3 . 1 2 1 2 . . 1 . 1 . . 2 . Weapon 7 | . 1 . . 1 . 1 3 . . . . . . . . . . . . . . . 1 Tool/Special 1 | . . . . . . . . . . . . . . . . . . . 1 . . . . Average Slot Usage (%) 94 | . 95 100 93 99 96 98 99 100 100 100 100 89 96 99 100 99 96 96 93 89 87 89 67 Engine 4 | . 12 11 . 4 15 14 12 12 12 12 12 3 2 . . . . . . . . . . Core 2 | . . . 10 5 . . . . . . . 7 11 11 11 11 9 1 . . . . . Reactor 5 | . . . . . . . . . . . . . . 5 5 5 5 11 13 12 12 10 7 Leg 25 | . 25 25 33 40 32 28 25 25 25 25 25 23 27 27 27 26 24 26 26 27 25 18 14 Device 24 | . 19 25 25 29 25 20 26 31 29 25 25 24 22 18 16 15 27 29 22 18 23 25 18 Storage 5 | . 5 . . . 4 7 6 6 6 6 6 5 5 5 5 5 5 4 4 4 4 6 6 Processor 5 | . 4 . . . . . . . 1 6 6 5 5 5 5 5 5 4 7 9 8 11 8 Protection 3 | . 2 12 4 . 1 6 10 6 6 6 6 2 5 8 11 10 5 2 . . 1 1 . Energy Gun 7 | . 11 11 15 18 15 18 7 6 6 6 6 . 1 7 11 11 10 8 9 6 . 1 . Energy Cannon 5 | . . . . . . . 7 6 6 6 10 10 11 7 5 5 3 3 . 2 6 8 4 Impact Weapon 2 | . . . . . . 1 3 6 6 6 1 4 3 . . . . . 3 4 1 . 2 Peak Build Rating 208 | 7 8 10 22 25 33 40 63 64 68 68 68 86 93 107 107 109 135 160 182 182 187 208 168 Average Rating 107 | 5 7 8 17 21 30 37 52 63 64 68 66 73 88 100 106 107 125 151 167 172 179 187 140 On Entrance 79 | . 7 8 10 22 22 33 38 63 64 68 68 66 86 93 107 107 103 134 157 174 164 184 131 Avg Prop Armor Cover (%) 3 | . . . . 5 . . . . . . . 3 . . . . . 2 3 . . 1 5 Naked Turns 18 | . . . . . . . . . . . . . . . . . . . . . . . 18 Heaviest Build 176 | 10 21 15 16 23 46 56 73 56 57 56 61 77 91 89 85 85 142 127 155 154 169 176 132 Greatest Support 185 | 20 20 20 46 46 60 58 61 59 66 66 66 89 89 98 98 98 113 159 170 170 170 185 155 Greatest Overweight (x) 1 | . 1 . . . . . 1 . . . . 1 1 . . . 1 . 1 . 1 1 1 Average Overweight (x) . | . . . . . . . . . . . . . . . . . . . . . . . . Largest Inventory Capacity 25 | 5 10 5 5 5 15 15 15 15 15 15 15 15 15 15 15 15 25 15 15 15 25 15 15 Average Capacity 13 | 5 7 5 5 5 11 15 15 15 15 15 15 15 15 15 15 15 15 15 15 15 15 15 14 Most Carried 15 | 2 5 5 5 5 11 15 15 15 15 15 15 15 15 15 14 15 15 15 15 15 15 15 15 Average Carried 13 | 1 2 4 4 4 7 13 14 14 14 15 14 14 14 14 14 14 14 14 14 15 14 14 12 Final Capacity 15 | 5 5 5 5 5 15 15 15 15 15 15 15 15 15 15 15 15 15 15 15 15 15 15 5 Final Carried 15 | 2 5 5 5 5 11 13 14 15 15 15 15 15 15 14 14 15 15 13 15 15 15 13 5 Class Distribution -------------------- 31% | Hacker-Mutant 15% | Scientist-Mutant 12% | Messiah-Tank 8% | Hacker-Tank 6% | Scientist-Tank 6% | Messiah-Mutant 6% | Scavenger-Tank 5% | Alien-Mutant 3% | Messiah-Gunner 3% | Alien-Gunner Dominant Class ---------------- Hacker-Mutant | -10/Materials Hacker-Mutant | -10/Mines Hacker-Mutant | -9/Materials Hacker-Mutant | -9/Storage Hacker-Mutant | -8/Materials Hacker-Tank | -7/Factory Hacker-Mutant | -6/Factory Scientist-Mutant | -6/Lower Caves Scientist-Mutant | -6/Lower Caves Hacker-Mutant | -6/Zion Hacker-Tank | -5/Proximity Caves Scientist-Mutant | -5/Factory Scientist-Mutant | -5/Extension Messiah-Tank | -5/Cetus Messiah-Tank | -5/Archives Messiah-Tank | -5/Hub_04(d) Scavenger-Tank | -4/Factory Scientist-Tank | -3/Research Hacker-Mutant | -3/Quarantine Alien-Mutant | -3/Section 7 Alien-Gunner | -2/Research Messiah-Tank | -1/Access Alien-Mutant | -1/Command Resources | -11 -10 -10 -9 -9 -8 -7 -6 -6 -6 -6 -5 -5 -5 -5 -5 -5 -4 -3 -3 -3 -2 -1 -1 ----------- Run | Yrd Mat Min Mat Sto Mat Fac Fac Low Low Zio Pro Fac Ext Cet Arc Hub Fac Res Qua Sec Res Acc Com Matter Collected 5741 | 220 191 167 132 319 120 220 641 16 50 . 20 245 105 140 . 117 398 623 761 64 272 870 50 Remotely . | . . . . . . . . . . . . . . . . . . . . . . . . Salvage Created 24154 | . 227 55 548 1422 807 283 1126 35 19 . 148 1092 1052 123 119 878 1719 2557 1624 1041 2612 6027 640 Parts 960 | . 7 3 32 92 39 19 39 1 . . 10 32 29 10 4 32 57 83 75 30 85 265 16 Haulers Intercepted 16 | . . . 2 3 2 . 1 . . . . 2 . . . . 1 2 . . 2 1 . Recyclers Shooed 3 | . . . 1 . . . 1 . . . . . . . . . . 1 . . . . . Parts Field Recycled . | . . . . . . . . . . . . . . . . . . . . . . . . Retrieved Matter . | . . . . . . . . . . . . . . . . . . . . . . . . Parts Self-Destructed . | . . . . . . . . . . . . . . . . . . . . . . . . Prevented . | . . . . . . . . . . . . . . . . . . . . . . . . Parts Restored . | . . . . . . . . . . . . . . . . . . . . . . . . Kills | -11 -10 -10 -9 -9 -8 -7 -6 -6 -6 -6 -5 -5 -5 -5 -5 -5 -4 -3 -3 -3 -2 -1 -1 ------- Run | Yrd Mat Min Mat Sto Mat Fac Fac Low Low Zio Pro Fac Ext Cet Arc Hub Fac Res Qua Sec Res Acc Com Combat Hostiles Destroyed 340 | . 4 2 10 25 11 4 15 1 . . 3 12 15 2 1 10 27 36 25 14 31 85 7 Melee 10 | . . . . . 1 1 2 1 . . . 2 . . . . 1 . 2 . . . . Guns 100 | . 2 1 4 23 9 2 5 . . . . . 2 1 . 4 11 14 13 6 . 3 . Cannons 128 | . . . . . . . . . . . 2 5 7 1 . 5 5 10 1 7 18 64 3 AOE 47 | . 2 1 6 2 1 1 1 . . . . 2 . . 1 . 6 3 . . 8 13 . Classes Destroyed 26 | . 2 . 7 5 . 1 2 . 1 . . . 2 . 1 2 . . . . . 3 . Worker 15 | . . . 1 . 2 . 3 . . . . 1 . . . 2 2 . . . 1 3 . Builder 14 | . . . 2 1 . . 2 . . . . . 3 . . . . 1 . . 1 4 . Tunneler 3 | . . . . 1 . . . . . . . 2 . . . . . . . . . . . Hauler 15 | . . . 2 3 2 . 1 . . . . 2 . . . . 1 2 . . 2 . . Recycler 6 | . 1 . 1 . . . 1 . . . . 1 . . . . . . . 1 . . 1 Carrier 3 | . . . . . . . . . . . . . 1 . . . . . . . . 2 . Minesweeper 1 | . . . . . . . . . 1 . . . . . . . . . . . . . . Mechanic 2 | . . . . 1 . . . . . . . . . . . . . . . . . 1 . Operator 9 | . . . . 2 . 1 . . . . . . 1 . . 1 1 1 . . 2 . . Watcher 16 | . . . 1 1 2 1 1 . . . . . 1 . . 1 2 1 . . 1 4 . Swarmer 42 | . . . 3 4 . . 3 . . . 2 . 4 . . 4 5 1 2 3 . 11 . Saboteur 1 | . . . . . . . . . . . . . . . . . . . . . . 1 . Grunt 107 | . 4 2 4 12 7 2 2 . . . . 3 3 . 1 2 9 7 5 . 17 27 . Brawler 8 | . . . 1 1 . . . . . . . . 2 . . . . 1 . . . 3 . Duelist 1 | . . . . 1 . . . . . . . . . . . . . . . . . . . Protector 3 | . . . . 1 . . . . . . . . . . . . . . . . . 2 . Sentry 47 | . . . 2 6 4 1 3 . . . 1 4 3 . . 1 5 6 2 2 1 6 . Hunter 40 | . . . . . . . 2 . . . . 2 1 1 . 3 2 2 2 4 6 12 3 Programmer 82 | . . . . . . 1 4 1 . . . 3 . . . . 5 19 14 5 7 19 4 Heavy 3 | . . . . . . . 1 . . . . . . . . . . . . . . 2 . Behemoth 3 | . . . . . . . . . . . . . 2 . . . . . . . . 1 . Cetus Guard 1 | . . . . . . . . . . . . . . 1 . . . . . . . . . Investigator 1 | . . . . . . . . . . . . . . . . . . . . . . 1 . Executioner 1 | . . . . . . . . . . . . . . . . . . . . . . 1 . Z-Courier 1 | . . . . . . . . . . . . . . . . . . . . . . 1 . Z-Light 3 | . . . . . . . . . . . . . . . . 3 . . . . . . . Z-Heavy 2 | . . . . . . . . . . . . . . . . 2 . . . . . . . Fireman 6 | . . . . . . . . . . . . . . . 2 . 4 . . . . . . Best Kill Streak 14 | . 4 2 5 4 12 2 4 1 1 . 2 2 4 1 1 8 11 6 3 8 6 14 4 Combat Bots Only 11 | . 3 2 3 3 4 2 3 1 . . 2 2 4 1 1 7 8 5 3 4 5 11 3 Max Kills in Single Turn 5 | . 2 1 3 2 2 2 4 1 1 . 1 1 2 1 3 3 5 1 1 2 3 4 1 Gunslinging 1 | . . . . 1 . 1 1 . . . . . . . . . . . . . . . . Exploded 3 | . 2 1 2 1 1 1 1 . . . . 1 . . 1 . 2 1 . . 3 3 . Melee 1 | . . . . . 1 1 1 1 . . . 1 . . . . 1 . 1 . . . . Uniques/NPCs Destroyed . | . . . . . . . . . . . . . . . . . . . . . . . . Combat | -11 -10 -10 -9 -9 -8 -7 -6 -6 -6 -6 -5 -5 -5 -5 -5 -5 -4 -3 -3 -3 -2 -1 -1 -------- Run | Yrd Mat Min Mat Sto Mat Fac Fac Low Low Zio Pro Fac Ext Cet Arc Hub Fac Res Qua Sec Res Acc Com Hostile Shots Fired 2954 | . 34 7 25 73 36 27 170 7 18 . 14 58 56 21 . 96 128 283 213 164 292 816 416 Missed 1207 | . 11 3 9 24 10 14 81 4 11 . 5 24 24 7 . 17 54 131 87 58 112 369 152 Deflected 1 | . . . . . . . . . . . . . . . . . . . . . . 1 . Hits 1747 | . 23 4 16 49 26 13 89 3 7 . 9 34 32 14 . 79 74 152 126 106 180 447 264 Melee 17 | . . . . 1 . . . . . . . . . . . . . . . . . 11 5 Projectile 1730 | . 23 4 16 48 26 13 89 3 7 . 9 34 32 14 . 79 74 152 126 106 180 436 259 AOE 21 | . . . . . . . . . . . . 1 . . . . . . . . . 2 18 Critical Strikes 83 | . 2 . . 1 1 . . . . . . 1 . . . 3 5 9 8 2 4 21 26 Actively Blocked 28 | . . . . . . . . . . . . . . . . . . . . . . 5 23 Part Disruptions 15 | . . . . . . . . . . . . 1 . 1 . . 1 2 3 . 2 3 2 Damage Taken 17312 | . 198 38 155 467 198 58 750 29 29 . 138 447 270 129 156 926 933 1403 878 592 1420 3916 4182 Core 2795 | . 29 30 11 71 9 10 64 . . . 22 60 14 32 78 84 54 118 174 150 309 518 958 Absorbed by Shields 7824 | . . . . . 52 42 201 . . . . 54 205 103 . 360 295 897 923 631 1493 2218 350 Redirected to Core 621 | . . . . . . . . . . . . . . . . . . . 127 138 214 142 . Redirected to Shielding 493 | . . . . . . 2 22 5 6 . 32 25 . . 39 109 . . . . 100 153 . Ignored by Resistances 16824 | . 125 23 95 290 155 65 578 18 22 . 80 292 281 141 84 541 722 1365 1059 740 1687 5845 2616 Regen/Repaired (Parts) 1065 | . . . . 69 190 30 76 . . . . 252 . . . . . . 373 75 . . . Core Remaining (%) 83 | 100 . 76 . 79 98 98 . . . . 89 . . . . 73 95 . . 54 73 . . Volleys Fired 801 | . 15 7 21 61 26 7 19 . . . 6 27 41 9 1 24 62 100 70 44 87 167 7 Largest 3 | . 2 2 2 2 2 3 3 . . . 3 3 3 3 1 3 3 3 3 2 2 3 3 Hottest 423 | . 70 50 90 90 90 135 207 . . . 193 196 276 398 43 238 423 281 281 186 215 360 240 Shots Fired 1862 | . 30 8 36 117 52 22 54 . . . 18 57 92 27 1 71 144 279 152 87 160 440 15 Gun 885 | . 26 7 31 113 52 22 47 . . . 6 3 11 10 . 47 102 182 139 49 . 38 . Cannon 919 | . . . . . . . 7 . . . 12 54 80 17 . 24 39 88 13 38 152 381 14 Launcher 58 | . 4 1 5 4 . . . . . . . . 1 . 1 . 3 9 . . 8 21 1 Special . | . . . . . . . . . . . . . . . . . . . . . . . . Kinetic 30 | . 15 6 8 . . . . . . . . . . . . . . . . . . . 1 Thermal 1212 | . 11 1 3 . . . . . . . . 22 91 26 . 47 121 270 114 38 65 390 13 Explosive 58 | . 4 1 5 4 . . . . . . . . 1 . 1 . 3 9 . . 8 21 1 Electromagnetic 401 | . . . 20 113 52 22 54 . . . 18 35 . . . . . . . . 87 . . Phasic 161 | . . . . . . . . . . . . . . 1 . 24 20 . 38 49 . 29 . Robot Hit Streak 73 | . 20 9 26 24 28 33 22 . . . 8 25 32 12 13 16 21 21 17 27 28 73 31 Robot Miss Streak 3 | . 1 . 1 2 2 2 1 . . . 1 2 1 1 . 2 2 3 2 1 3 1 1 Penetration Max . | . . . . . . . . . . . . . . . . . . . . . . . . Secondary Targets 6 | . . . . 2 . 1 1 . . . . . . . . . . . 2 . . . . Max Gunslinging Chain 1 | . . . . 1 . 1 1 . . . . . . . . . . . 1 . . . . Capacitor 6 | . . . . . . . . . . . . . . . . . 6 . . . . . . Shots Hit Robots 1588 | . 21 8 30 102 48 21 68 2 1 . 15 65 75 23 1 48 115 232 135 74 143 339 22 Core Hits 756 | . 11 5 27 68 38 16 33 1 . . 4 21 25 9 7 26 64 80 43 26 74 173 5 Critical Kills 23 | . . . . . . . 1 . . . . . 5 . . . 2 4 3 1 1 6 . Critical Parts Destroyed 42 | . 1 . . . 1 1 7 1 1 . . 8 3 . . . . 11 . . 2 . 6 Critical Strikes 101 | . 1 . . . 1 1 8 1 1 . 1 8 8 . . 2 7 28 14 3 5 6 6 Burn 25 | . . . . . . . . . . . . . . . . . 4 13 8 . . . . Meltdown 18 | . . . . . . . . . . . . . 5 . . . 2 3 1 1 . 6 . Destroy 1 | . 1 . . . . . . . . . . . . . . . . . . . . . . Corrupt 3 | . . . . . . . . . . . 1 . . . . . . . . . 2 . . Smash 46 | . . . . . 1 1 8 1 1 . . 8 3 . . . . 12 2 . 3 . 6 Intensify 8 | . . . . . . . . . . . . . . . . 2 1 . 3 2 . . . Melee Attacks 254 | . . . . 2 3 7 59 2 4 1 . 42 6 4 . . 4 20 23 11 22 33 11 Impact 254 | . . . . 2 3 7 59 2 4 1 . 42 6 4 . . 4 20 23 11 22 33 11 Slashing . | . . . . . . . . . . . . . . . . . . . . . . . . Piercing . | . . . . . . . . . . . . . . . . . . . . . . . . Sneak Attacks 15 | . . . . . . . 3 . 1 . . 6 1 . . . 1 1 . . . 1 1 Combat Hostiles . | . . . . . . . . . . . . . . . . . . . . . . . . Follow-up Attacks . | . . . . . . . . . . . . . . . . . . . . . . . . Damage Inflicted 69737 | . 516 272 1137 2261 1394 605 2998 113 89 . 295 3217 2607 759 341 2274 5416 8915 4623 3020 8177 19530 1178 Guns 20507 | . 253 80 456 1929 954 307 795 . . . 57 59 241 253 . 1125 2612 4352 4046 1710 . 1278 . Cannons 30642 | . . . . . . . 151 . . . 238 1230 2194 506 . 486 1059 2749 373 1310 5272 14487 587 Explosions 12234 | . 260 191 678 318 338 104 718 . . . . 345 . . 341 632 1592 792 . . 2631 3294 . Melee 5910 | . . . . . 95 194 1334 113 89 . . 1526 172 . . . 71 1022 204 . 239 269 582 Ramming 444 | . 3 1 3 14 7 . . . . . . 57 . . . 31 82 . . . 35 202 9 Kinetic 315 | . 139 68 76 . . . . . . . . . . . . . . . . . . . 32 Thermal 40112 | . 114 116 428 215 338 104 718 . . . . 834 2435 726 . 1017 3110 7101 3165 1310 3092 14734 555 Explosive 8828 | . 260 87 275 103 . . . . . . . . . . 341 . 1592 792 . . 2084 3294 . Electromagnetic 8945 | . . . 355 1929 954 307 946 . . . 295 800 . . . 632 . . . . 2727 . . Impact 5910 | . . . . . 95 194 1334 113 89 . . 1526 172 . . . 71 1022 204 . 239 269 582 Slashing . | . . . . . . . . . . . . . . . . . . . . . . . . Piercing . | . . . . . . . . . . . . . . . . . . . . . . . . Phasic 5183 | . . . . . . . . . . . . . . 33 . 594 561 . 1254 1710 . 1031 . Highest Corruption 9 | . . . . 1 . 1 1 . . . . 3 . . . 2 . 5 9 3 . . . Average Corruption 3 | . . . . 1 . 1 1 . . . . 2 . . . 1 . 2 5 3 . . . Corruption Purged 16 | . . . . . . . 1 . . . . 3 . . . 4 . 8 . . . . . Corruption Blocked . | . . . . . . . . . . . . . . . . . . . . . . . . Effects 73 | . . . . 2 . 4 2 . . . . . . . . 1 . 27 28 9 . . . Message Errors 21 | . . . . . . 1 . . . . . . . . . . . 6 11 3 . . . Matter Fused 19 | . . . . 1 . 1 1 . . . . . . . . . . 7 7 2 . . . Heat Flow Errors 7 | . . . . . . . . . . . . . . . . 1 . 2 3 1 . . . Energy Discharges 6 | . . . . . . . . . . . . . . . . . . 3 2 1 . . . Data Loss (minor) 6 | . . . . 1 . 1 . . . . . . . . . . . 2 2 . . . . Data Loss (major) 6 | . . . . . . . . . . . . . . . . . . 4 1 1 . . . Misfires 3 | . . . . . . 1 1 . . . . . . . . . . 1 . . . . . Alerts 1 | . . . . . . . . . . . . . . . . . . . 1 . . . . Weapon Failures 4 | . . . . . . . . . . . . . . . . . . 2 1 1 . . . Overload Shots 11 | . . . . . . . . . . . . . . 1 . . 10 . . . . . . Overflow Damage 4868 | . . . 56 4 51 51 937 53 89 . . 724 243 . . 17 107 1037 24 43 376 582 474 Projectiles 956 | . . . . . . . . . . . . 15 71 . . . . 262 . 43 164 349 52 Explosions 541 | . . . 56 4 24 . 231 . . . . . . . . 17 56 . . . 95 58 . Melee 3371 | . . . . . 27 51 706 53 89 . . 709 172 . . . 51 775 24 . 117 175 422 Knockbacks 26 | . . . . . . . 2 . . . . 6 1 . . . . 3 1 . 3 3 7 Impact 26 | . . . . . . . 2 . . . . 6 1 . . . . 3 1 . 3 3 7 Kinetic . | . . . . . . . . . . . . . . . . . . . . . . . . Secondary . | . . . . . . . . . . . . . . . . . . . . . . . . Self-Inflicted Damage 733 | . 5 . 18 68 . 21 232 . . . . . . . . 69 224 39 . . 46 7 4 Shots 24 | . 1 . 2 4 . 1 5 . . . . . . . . 1 6 2 . . 1 1 . Rammed 2 | . . . . . . . . . . . . . . . . . . . . . . . 2 Targets Rammed 32 | . 1 1 1 4 1 . . . . . . 5 . . . 3 3 . . . 4 7 2 Kicked 30 | . 1 1 1 4 1 . . . . . . 5 . . . 3 3 . . . 4 7 . Crushed . | . . . . . . . . . . . . . . . . . . . . . . . . Highest Temperature 577 | . 207 16 207 . . 21 99 . . . 84 577 542 387 . 492 404 448 429 . . 400 . Average Temperature 141 | . 78 5 76 . . 6 21 . . . 39 220 161 167 . 239 140 164 154 . . 118 . Received Heat Transfer 2285 | . 198 36 87 267 145 16 61 9 12 . 24 58 62 17 . 54 181 102 81 16 186 343 330 Effects 10 | . . . . . . . . . . . . 1 . . . 3 1 5 . . . . . Energy Bleed 3 | . . . . . . . . . . . . . . . . 1 . 2 . . . . . Interference 3 | . . . . . . . . . . . . . . . . . 1 2 . . . . . Matter Decay 1 | . . . . . . . . . . . . . . . . 1 . . . . . . . Short Circuit 2 | . . . . . . . . . . . . 1 . . . . . 1 . . . . . Damage (minor) 1 | . . . . . . . . . . . . . . . . 1 . . . . . . . Siege Activations . | . . . . . . . . . . . . . . . . . . . . . . . . Martial Activations . | . . . . . . . . . . . . . . . . . . . . . . . . Shielding Activations 1 | . . . . . . . . . . . . . . . . . . . . . . 1 . Total Turns 13 | . . . . . . . . . . . . . . . . . . . . . . 13 . Longest Duration 13 | . . . . . . . . . . . . . . . . . . . . . . 13 . Robots Disrupted 5 | . . . . . . . . . . . . . . . . . . . . . 5 . . Combat Hostiles 5 | . . . . . . . . . . . . . . . . . . . . . 5 . . Robots Corrupted 36 | . . . . 1 1 . 8 . 1 . 1 5 1 . . 3 . 2 1 . 5 2 5 Combat Hostiles 23 | . . . . . . . 7 . . . 1 3 . . . . . 2 1 . 5 . 4 Parts Fried 97 | . . . 2 9 2 . 28 . . . 1 12 3 . . 14 . . 1 . 15 6 4 Impact Corruptions 109 | . . . . . 1 2 25 2 2 . . 25 5 . . . 1 22 1 . 2 6 15 Robots Melted 37 | . . . . . . . . . . . . . 8 . . 1 4 7 8 1 . 8 . Combat Hostiles 32 | . . . . . . . . . . . . . 6 . . 1 4 7 8 1 . 5 . Parts Melted 153 | . 1 1 . . . . . . . . . . 20 . . 5 12 48 31 6 . 26 3 Heat Transferred 43847 | . 333 137 474 300 350 100 500 . . . . 1000 3596 1059 . 1416 4145 10262 5620 1110 2335 10721 389 Parts Sabotaged 6 | . . . . . . . . . . . . . . . . . . . . . . 6 . Parts Stolen . | . . . . . . . . . . . . . . . . . . . . . . . . Parts Stripped . | . . . . . . . . . . . . . . . . . . . . . . . . Power Chain Reactions 20 | . . . 3 5 4 1 2 . . . . 3 . . . . . . . . 2 . . Alert | -11 -10 -10 -9 -9 -8 -7 -6 -6 -6 -6 -5 -5 -5 -5 -5 -5 -4 -3 -3 -3 -2 -1 -1 ------- Run | Yrd Mat Min Mat Sto Mat Fac Fac Low Low Zio Pro Fac Ext Cet Arc Hub Fac Res Qua Sec Res Acc Com Maximum Alert Level 5 | . . . . . . . . . . . . . 1 . . 1 1 1 . 1 4 5 4 Low Security (%) 75 | 100 100 100 100 100 100 100 100 . . . . 100 79 100 100 84 82 99 100 97 17 6 . Level 1 6 | . . . . . . . . . . . . . 20 . . 15 17 . . 2 16 23 . Level 2 7 | . . . . . . . . . . . . . . . . . . . . . 20 38 5 Level 3 5 | . . . . . . . . . . . . . . . . . . . . . 41 8 77 Level 4 1 | . . . . . . . . . . . . . . . . . . . . . 4 5 17 Level 5 . | . . . . . . . . . . . . . . . . . . . . . . 2 . High Security 2 | . . . . . . . . . . . . . . . . . . . . . . 14 . Max Security . | . . . . . . . . . . . . . . . . . . . . . . . . Peak Influence 2356 | . 99 64 193 172 139 53 100 . . . . 174 257 120 59 250 262 203 121 211 1117 2356 1154 Initial 1154 | . . 10 9 24 17 . . . . . . . 34 95 . . 66 58 24 . 53 454 1154 Average 220 | . 19 6 118 44 20 3 11 . . . . 30 139 28 8 109 84 69 17 75 603 786 1023 Influence Increases 16239 | . 153 64 341 932 346 154 663 45 5 . 117 1164 826 239 105 484 991 1449 835 446 1899 4752 229 Destroy 0b10 Robot/C 9040 | . 80 40 200 620 220 80 300 20 . . 80 600 500 160 80 200 620 880 540 280 1040 2360 140 Destroy 0b10 Robot/NC 485 | . 5 . 35 50 30 10 40 . 5 . . 40 25 10 . 20 40 30 . 5 45 90 5 Destroy Leader 2034 | . 20 10 56 168 68 32 114 10 . . 10 184 72 10 . 42 120 208 110 80 218 472 30 Allied During Kill 767 | . . . . 6 . . . . . . 27 131 165 53 9 4 49 15 5 . 46 257 . Trap Triggered on 0b10 30 | . . . . . . . . . . . . 30 . . . . . . . . . . . Successful Hack 325 | . 9 . 3 13 13 11 56 . . . . 35 . . . . . 80 48 39 . 18 . Disable Machine 292 | . 8 4 8 12 . . 44 . . . . 16 8 . . 24 36 20 32 12 28 40 . Anti-Garrison Action 150 | . . . . . . . . . . . . . . . . . . . . . . 150 . Destroy Structure 2321 | . 31 10 39 63 15 6 94 . . . . 128 56 6 16 194 96 216 40 30 402 870 9 Partial Spotted 15 | . . . . . . . . . . . . . . . . . . . . . 15 . . Lose Combat Pursuer 780 | . . . . . . 15 15 15 . . . . . . . . 30 . 60 . 105 495 45 Influence Decreases 15561 | . 114 69 292 957 404 154 633 75 5 . 117 1066 697 466 105 299 1025 1541 894 318 1028 3395 1907 Entered New Map 2435 | . . 29 25 59 41 . . 16 . . . . 64 132 . . 119 93 35 . 75 545 1202 Time Decay 11433 | . 114 40 267 708 361 154 629 59 5 . 117 972 593 242 21 259 779 1348 819 308 833 2460 345 Lost Part 512 | . . . . . 2 . 4 . . . . 9 . . . 30 47 30 . 10 20 160 200 Lost Ally 1031 | . . . . 40 . . . . . . . 85 40 92 84 10 80 70 40 . 100 230 160 Purge Threat 150 | . . . . 150 . . . . . . . . . . . . . . . . . . . Squads Dispatched 123 | . . . . 6 2 4 5 . . . . 10 3 1 . 1 5 9 9 3 12 48 5 Investigation 12 | . . . . 1 . 1 . . . . . 2 2 1 . . 1 1 . . . 3 . Extermination 38 | . . . . . . 2 4 . . . . 4 . . . . 3 5 5 2 3 8 2 Reinforcement 30 | . . . . 1 2 1 1 . . . . 3 1 . . 1 1 3 . 1 8 6 1 Assault 34 | . . . . 2 . . . . . . . 1 . . . . . . . . 1 28 2 Garrison 9 | . . . . 2 . . . . . . . . . . . . . . 4 . . 3 . Intercept . | . . . . . . . . . . . . . . . . . . . . . . . . Searches Triggered . | . . . . . . . . . . . . . . . . . . . . . . . . Construction Impeded 6 | . . . . . 1 . . . . . . 2 . . . . 1 . . . . 2 . Haulers Reinforced 7 | . . . . . . . . . . . . 1 . . . . . 1 . . 3 2 . Active Scanning Responses . | . . . . . . . . . . . . . . . . . . . . . . . . Cargo Convoy Interrupts 1 | . . . . . . . 1 . . . . . . . . . . . . . . . . Stealth | -11 -10 -10 -9 -9 -8 -7 -6 -6 -6 -6 -5 -5 -5 -5 -5 -5 -4 -3 -3 -3 -2 -1 -1 --------- Run | Yrd Mat Min Mat Sto Mat Fac Fac Low Low Zio Pro Fac Ext Cet Arc Hub Fac Res Qua Sec Res Acc Com Distress Signals 33 | . . . 1 1 1 1 1 . . . . 2 3 2 . 1 2 3 3 . 2 9 1 Communications Jammed 11 | . . . . . . . . . . . . . . . . . 6 5 . . . . . Distress Signals 11 | . . . . . . . . . . . . . . . . . 6 5 . . . . . Times Spotted 753 | . 12 2 12 38 15 6 21 5 1 . 4 30 26 11 6 17 53 56 41 21 73 180 123 Peak Tracking Total 120 | . 5 2 4 5 3 2 3 3 1 . 1 3 5 5 7 8 11 4 7 6 8 19 120 Tactical Retreats 30 | . . . . . . 1 1 1 . . . . . . . . 2 . 2 . 5 16 2 Traps | -11 -10 -10 -9 -9 -8 -7 -6 -6 -6 -6 -5 -5 -5 -5 -5 -5 -4 -3 -3 -3 -2 -1 -1 ------- Run | Yrd Mat Min Mat Sto Mat Fac Fac Low Low Zio Pro Fac Ext Cet Arc Hub Fac Res Qua Sec Res Acc Com Traps Triggered 21 | . . . 1 4 . 2 . . . . . . 1 . . . . 4 2 . 1 6 . Indirectly . | . . . . . . . . . . . . . . . . . . . . . . . . Trap Hack Attempts . | . . . . . . . . . . . . . . . . . . . . . . . . Triggered . | . . . . . . . . . . . . . . . . . . . . . . . . Disarmed 6 | . . . . . . . 6 . . . . . . . . . . . . . . . . Reprogrammed . | . . . . . . . . . . . . . . . . . . . . . . . . Reused 3 | . . . . . . . . . . . . 3 . . . . . . . . . . . Traps Extracted . | . . . . . . . . . . . . . . . . . . . . . . . . Installed 7 | . . . . . . . . . 1 . . 6 . . . . . . . . . . . Triggered 3 | . . . . . . . . . . . . 3 . . . . . . . . . . . Most Traps Carried 7 | . . . . . . . . . 7 7 7 7 . . . . . . . . . . . Machines | -11 -10 -10 -9 -9 -8 -7 -6 -6 -6 -6 -5 -5 -5 -5 -5 -5 -4 -3 -3 -3 -2 -1 -1 ---------- Run | Yrd Mat Min Mat Sto Mat Fac Fac Low Low Zio Pro Fac Ext Cet Arc Hub Fac Res Qua Sec Res Acc Com Machines Disabled 77 | . 2 1 2 3 . . 11 . 1 . . 4 3 1 . 6 9 5 8 3 7 11 . Max in Single Turn 10 | . 1 1 2 1 . . 10 . 1 . . 2 1 1 . 4 7 1 1 1 2 1 . Garrison Access 5 | . . . . 1 . 1 1 . . . . 1 . . . . . . . . . 1 . Network Hub 1 | . . . . . . . . . . . . . . . . 1 . . . . . . . Energy Cycler 2 | . . . . . . . . . . . . . . . . . . . . . . 2 . Machines Repaired . | . . . . . . . . . . . . . . . . . . . . . . . . Machines Dismantled . | . . . . . . . . . . . . . . . . . . . . . . . . Machines Sabotaged . | . . . . . . . . . . . . . . . . . . . . . . . . Overloaded Fab Kills . | . . . . . . . . . . . . . . . . . . . . . . . . Hacking | -11 -10 -10 -9 -9 -8 -7 -6 -6 -6 -6 -5 -5 -5 -5 -5 -5 -4 -3 -3 -3 -2 -1 -1 --------- Run | Yrd Mat Min Mat Sto Mat Fac Fac Low Low Zio Pro Fac Ext Cet Arc Hub Fac Res Qua Sec Res Acc Com Machines Accessed 79 | . 3 . 1 12 6 4 11 . 2 . . 10 6 3 1 . 3 6 5 1 . 5 . Terminals 39 | . 2 . 1 9 3 1 6 . . . . 1 6 3 . . . 1 3 . . 3 . Fabricators 4 | . . . . . . . . . . . . 3 . . . . 1 . . . . . . Repair Stations 14 | . . . . 1 1 1 3 . . . . 2 . . . . 1 2 1 1 . 1 . Recycling Units 8 | . 1 . . 1 1 . 1 . . . . 1 . . . . 1 1 . . . 1 . Scanalyzers 8 | . . . . . 1 1 . . . . . 3 . . . . . 2 1 . . . . Garrison Access 3 | . . . . 1 . 1 1 . . . . . . . . . . . . . . . . Total Hacks 274 | . 9 . 2 28 35 17 33 . 2 . . 26 11 6 25 . 7 19 36 3 . 15 . Successful 199 | . 8 . 2 20 31 15 21 . 2 . . 17 5 6 25 . 4 13 22 2 . 6 . Failed 75 | . 1 . . 8 4 2 12 . . . . 9 6 . . . 3 6 14 1 . 9 . Catastrophic 5 | . . . . . 1 . . . . . . 1 . . . . . 1 1 . . 1 . Database Lockouts . | . . . . . . . . . . . . . . . . . . . . . . . . Manual 198 | . 3 . 2 16 6 1 22 . . 1 . 13 9 5 2 20 11 15 26 9 8 27 2 Terminals 95 | . 7 . 2 20 11 1 23 . . . . 1 11 6 . . . 2 4 . . 7 . Fabricators 12 | . . . . . . . . . . . . 9 . . . . 3 . . . . . . Repair Stations 90 | . . . . 6 18 11 7 . . . . 7 . . . . 3 5 26 3 . 4 . Recycling Units 15 | . 2 . . 1 1 . 1 . . . . 2 . . . . 1 3 . . . 4 . Scanalyzers 31 | . . . . . 5 4 . . . . . 7 . . . . . 9 6 . . . . Garrison Access 4 | . . . . 1 . 1 2 . . . . . . . . . . . . . . . . Terminal Hacks 70 | . 4 . 1 6 4 . 8 . 2 . . 1 5 6 25 . . 1 4 . . 3 . Record 36 | . . . . 1 . . . . 1 . . . . 5 25 . . . 4 . . . . Robot Analysis 1 | . . . . . 1 . . . . . . . . . . . . . . . . . . Prototype ID Bank 3 | . 1 . . . 1 . 1 . . . . . . . . . . . . . . . . Open Door 15 | . . . . 3 . . . . 1 . . 1 5 1 . . . 1 . . . 3 . Branch Access Points 5 | . 1 . 1 1 1 . 1 . . . . . . . . . . . . . . . . Terminal Index 1 | . . . . . . . 1 . . . . . . . . . . . . . . . . Repair Station Index 1 | . . . . . . . 1 . . . . . . . . . . . . . . . . Scanalyzer Index 1 | . . . . . . . 1 . . . . . . . . . . . . . . . . Unreport Threat 2 | . . . . 1 . . 1 . . . . . . . . . . . . . . . . Locate Traps 1 | . 1 . . . . . . . . . . . . . . . . . . . . . . Disarm Traps 1 | . . . . . . . 1 . . . . . . . . . . . . . . . . Registered Components 1 | . . . . . 1 . . . . . . . . . . . . . . . . . . Registered Prototypes 1 | . 1 . . . . . . . . . . . . . . . . . . . . . . Zone Layout 1 | . . . . . . . 1 . . . . . . . . . . . . . . . . Fabricator Hacks 5 | . . . . . . . . . . . . 3 . . . . 2 . . . . . . Network Status 1 | . . . . . . . . . . . . 1 . . . . . . . . . . . Load Schematic 3 | . . . . . . . . . . . . 2 . . . . 1 . . . . . . Build 1 | . . . . . . . . . . . . . . . . . 1 . . . . . . Repair Station Hacks 69 | . . . . 6 18 10 5 . . . . 6 . . . . 1 3 16 2 . 2 . Scan Component 38 | . . . . 3 9 5 3 . . . . 3 . . . . 1 2 9 1 . 2 . Repair 31 | . . . . 3 9 5 2 . . . . 3 . . . . . 1 7 1 . . . Recycling Unit Hacks 10 | . 2 . . 1 1 . 1 . . . . 2 . . . . 1 1 . . . 1 . Process 1 | . 1 . . . . . . . . . . . . . . . . . . . . . . Report Inventory 5 | . 1 . . 1 1 . 1 . . . . 1 . . . . . . . . . . . Retrieve Components 4 | . . . . . . . . . . . . 1 . . . . 1 1 . . . 1 . Scanalyzer 22 | . . . . . 5 3 . . . . . 5 . . . . . 7 2 . . . . Retrieve Study 22 | . . . . . 5 3 . . . . . 5 . . . . . 7 2 . . . . Garrison Access Hacks 3 | . . . . 1 . 1 1 . . . . . . . . . . . . . . . . Seal Access 3 | . . . . 1 . 1 1 . . . . . . . . . . . . . . . . Unauthorized Hacks 20 | . 2 . 1 6 3 1 6 . . . . . . . . . . 1 . . . . . Terminals 19 | . 2 . 1 6 3 1 6 . . . . . . . . . . . . . . . . Botnet 19 | . 2 . 1 6 3 1 6 . . . . . . . . . . . . . . . . Fabricators . | . . . . . . . . . . . . . . . . . . . . . . . . Repair Stations . | . . . . . . . . . . . . . . . . . . . . . . . . Recycling Units 1 | . . . . . . . . . . . . . . . . . . 1 . . . . . Reject 1 | . . . . . . . . . . . . . . . . . . 1 . . . . . Scanalyzers . | . . . . . . . . . . . . . . . . . . . . . . . . Garrison Access . | . . . . . . . . . . . . . . . . . . . . . . . . Data Cores Recovered 1 | . . . . . . . . . . . . . . . . . 1 . . . . . . Used . | . . . . . . . . . . . . . . . . . . . . . . . . Hacking Detections 54 | . 3 . 1 7 3 3 11 . . . . 9 2 2 . . 2 5 2 1 . 3 . Full Trace Events 9 | . . . . 2 1 . . . . . . 2 1 1 . . . . . . . 2 . Feedback Events . | . . . . . . . . . . . . . . . . . . . . . . . . Feedback Blocked . | . . . . . . . . . . . . . . . . . . . . . . . . Robot Schematics Acquired 7 | . . . . . . . . . . 3 . . . . . . . . 4 . . . . Robots Built 1 | . . . . . . . . . . . . . . . . . 1 . . . . . . Authchips . | . . . . . . . . . . . . . . . . . . . . . . . . Time 134 | . . . . . . . . . . . . . . . . . 134 . . . . . . Total Robot Build Rating 4 | . . . . . . . . . . . . . . . . . 4 . . . . . . Part Schematics Acquired 30 | . . . . . . . . . . 15 . . . . . . . . . 15 . . . Parts Built . | . . . . . . . . . . . . . . . . . . . . . . . . Authchips . | . . . . . . . . . . . . . . . . . . . . . . . . Time . | . . . . . . . . . . . . . . . . . . . . . . . . Total Part Build Rating . | . . . . . . . . . . . . . . . . . . . . . . . . Part Studies Acquired 20 | . . . . . 5 3 . . . . . 5 . . . . . 5 2 . . . . Parts Repaired 30 | . . . . 3 9 5 2 . . . . 3 . . . . . . 7 1 . . . Time 1335 | . . . . 115 357 192 38 . . . . 95 . . . . . 18 498 22 . . . Parts Recycled . | . . . . . . . . . . . . . . . . . . . . . . . . Recycled Matter 16 | . 16 . . . . . . . . . . . . . . . . . . . . . . Retrieved Matter . | . . . . . . . . . . . . . . . . . . . . . . . . Retrieved Components 26 | . . . . . . . . . . . . 10 . . . . 10 5 . . . 1 . Parts Scanalyzed . | . . . . . . . . . . . . . . . . . . . . . . . . Part Schematics Acquired . | . . . . . . . . . . . . . . . . . . . . . . . . Parts Damaged . | . . . . . . . . . . . . . . . . . . . . . . . . Bothacking | -11 -10 -10 -9 -9 -8 -7 -6 -6 -6 -6 -5 -5 -5 -5 -5 -5 -4 -3 -3 -3 -2 -1 -1 ------------ Run | Yrd Mat Min Mat Sto Mat Fac Fac Low Low Zio Pro Fac Ext Cet Arc Hub Fac Res Qua Sec Res Acc Com Used RIF Installer . | . . . . . . . . . . . . . . . . . . . . . . . . Robots Hacked . | . . . . . . . . . . . . . . . . . . . . . . . . Non-combat . | . . . . . . . . . . . . . . . . . . . . . . . . Combat . | . . . . . . . . . . . . . . . . . . . . . . . . Robot Hacks Applied . | . . . . . . . . . . . . . . . . . . . . . . . . Relay Couplers Released 10 | . . . . . . . 3 . . . . 3 . . . . . . 3 . . 1 . Machine Destruction 7 | . . . . . . . 3 . . . . 3 . . . . . . . . . 1 . Programmers 3 | . . . . . . . . . . . . . . . . . . . 3 . . . . Fabnet Peak Effective % . | . . . . . . . . . . . . . . . . . . . . . . . . Robots Rewired 3 | . . . . . . . . . . . . . . 1 . . . 1 . . 1 . . Allies Hacked . | . . . . . . . . . . . . . . . . . . . . . . . . Hacks Repelled . | . . . . . . . . . . . . . . . . . . . . . . . . Allies | -11 -10 -10 -9 -9 -8 -7 -6 -6 -6 -6 -5 -5 -5 -5 -5 -5 -4 -3 -3 -3 -2 -1 -1 -------- Run | Yrd Mat Min Mat Sto Mat Fac Fac Low Low Zio Pro Fac Ext Cet Arc Hub Fac Res Qua Sec Res Acc Com Total Allies 80 | . . . . 2 . . . . . 6 . 11 11 1 . 6 9 6 . . 7 13 8 Largest Group 16 | . . . . 2 . . . . . 6 6 9 16 14 8 6 5 2 2 . 2 7 . Highest-Rated Group 908 | . . . . 62 . . . . . 341 341 342 683 657 406 411 196 206 206 . 338 908 . Highest-Rated Ally 269 | . . . . 31 . . . . . 96 96 96 159 159 159 85 40 103 103 . 269 269 . Zionite Dispatches 28 | . . . . . . . . . . . . 3 3 . . 3 2 4 . . 4 9 . Heavy 7 | . . . . . . . . . . . . . 1 . . 1 . 1 . . 2 2 . Light 3 | . . . . . . . . . . . . 1 . . . 1 . . . . . 1 . Recon 1 | . . . . . . . . . . . . . . . . . . 1 . . . . . Fire 5 | . . . . . . . . . . . . 2 1 . . . 2 . . . . . . Hacker 1 | . . . . . . . . . . . . . . . . . . 1 . . . . . Demo 2 | . . . . . . . . . . . . . . . . . . . . . . 2 . Experimental 4 | . . . . . . . . . . . . . . . . . . . . . 2 2 . Thermal Resupply 1 | . . . . . . . . . . . . . 1 . . . . . . . . . . Resource Resupply 1 | . . . . . . . . . . . . . . . . 1 . . . . . . . Infowar Resupply 1 | . . . . . . . . . . . . . . . . . . 1 . . . . . Zionite Resupply 2 | . . . . . . . . . . . . . . . . . . . . . . 2 . Total Orders 5 | . . . . . . . . . . . . . 1 . . 1 . 1 . . . 2 . DROP 5 | . . . . . . . . . . . . . 1 . . 1 . 1 . . . 2 . Ally Attacks 557 | . . . . 33 . . . . . . 9 138 48 35 7 5 39 38 7 . 62 131 5 Total Damage 24146 | . . . . 499 . . . . . . 393 3254 1260 1103 408 249 537 1397 463 . 5087 9392 104 Kills 126 | . . . . 7 . . . . . . 1 20 10 8 3 . 6 9 2 . 23 37 . Allies Corrupted 6 | . . . . . . . . . . . . 1 . . . 4 . . . . 1 . . Allies Melted 1 | . . . . . . . . . . . . . . . . . . . . . 1 . . Intel | -11 -10 -10 -9 -9 -8 -7 -6 -6 -6 -6 -5 -5 -5 -5 -5 -5 -4 -3 -3 -3 -2 -1 -1 ------- Run | Yrd Mat Min Mat Sto Mat Fac Fac Low Low Zio Pro Fac Ext Cet Arc Hub Fac Res Qua Sec Res Acc Com Active Infowar (turns) 25321 | 56 399 397 398 1289 1104 841 2403 568 692 1093 409 2053 830 588 87 371 1310 2062 2281 631 1208 3862 389 Sensors 4027 | . 242 397 167 2 . . . . . . . . . . . . . . 2 . . 2828 389 IFF 6798 | . . . . . . . 436 568 692 1093 409 1815 . . . . 2 691 1092 . . . . Structural 6470 | 56 399 397 398 1287 1104 841 1988 . . . . . . . . . . . . . . . . Decoding 16411 | . . . . . . . . . 186 1093 409 2053 830 588 87 371 1310 2062 2281 631 1208 3302 . Jamming 1189 | . . . . . . . . . . . . . . . . . 30 1159 . . . . . ECM 4 | . . . . . . . . . . . . . . . . . . . 1 . 1 2 . Robot Analysis Total 1 | . . . . . 1 . . . . . . . . . . . . . . . . . . Derelict Logs Recovered 9 | . . 1 . . . . . 2 2 2 2 . . . . . . . . . . . . Drone Launches . | . . . . . . . . . . . . . . . . . . . . . . . . Drone Recoveries . | . . . . . . . . . . . . . . . . . . . . . . . . Decoded 0b10 Intel 391 | . . . . . . . . . . . . 59 21 5 3 10 30 66 56 18 35 88 . Traps 32 | . . . . . . . . . . . . . 6 . . 2 . 6 5 3 1 9 . Emergency Access 25 | . . . . . . . . . . . . 4 . . . 1 3 2 5 2 1 7 . Items 260 | . . . . . . . . . . . . 42 10 . 2 5 18 47 40 11 23 62 . Machines 46 | . . . . . . . . . . . . 8 2 3 1 1 7 6 5 1 4 8 . Patrols 16 | . . . . . . . . . . . . 2 2 . . . . 4 1 . 5 2 . Guards 9 | . . . . . . . . . . . . 2 1 . . 1 2 1 . 1 1 . . Exits 3 | . . . . . . . . . . . . 1 . 2 . . . . . . . . . Zionite Intel Received 16 | . . . . . . . . . . . . 2 . . . 3 1 1 6 2 . 1 . Main Access 1 | . . . . . . . . . . . . . . . . . . . 1 . . . . Branch Access 1 | . . . . . . . . . . . . . . . . . . 1 . . . . . Emergency Access 1 | . . . . . . . . . . . . . . . . 1 . . . . . . . Guard Positions 2 | . . . . . . . . . . . . . . . . . . . 1 . . 1 . Component Stockpiles 3 | . . . . . . . . . . . . . . . . 1 . . 1 1 . . . Prototype Stockpiles 2 | . . . . . . . . . . . . . . . . 1 . . 1 . . . . Component Schematics 1 | . . . . . . . . . . . . . . . . . . . . 1 . . . Unaware Schematics 1 | . . . . . . . . . . . . . . . . . . . 1 . . . . Trap Installations 1 | . . . . . . . . . . . . . . . . . . . 1 . . . . Active Terminals 2 | . . . . . . . . . . . . 1 . . . . 1 . . . . . . Depthwide Sectors/0 1 | . . . . . . . . . . . . 1 . . . . . . . . . . . Exploration | -11 -10 -10 -9 -9 -8 -7 -6 -6 -6 -6 -5 -5 -5 -5 -5 -5 -4 -3 -3 -3 -2 -1 -1 ------------- Run | Yrd Mat Min Mat Sto Mat Fac Fac Low Low Zio Pro Fac Ext Cet Arc Hub Fac Res Qua Sec Res Acc Com Turns Passed 25399 | 60 399 397 398 1291 1104 841 2404 568 692 1093 409 2053 830 588 87 371 1310 2062 2281 631 1208 3862 460 Spaces Moved 16168 | 44 240 311 237 634 480 507 1459 489 606 925 326 1350 549 461 72 246 829 1425 1221 367 742 2335 313 Core 27 | 7 . . . . . . . . . . . . . . . . . . . . . . 20 Treads . | . . . . . . . . . . . . . . . . . . . . . . . . Legs 16141 | 37 240 311 237 634 480 507 1459 489 606 925 326 1350 549 461 72 246 829 1425 1221 367 742 2335 293 Wheels . | . . . . . . . . . . . . . . . . . . . . . . . . Hover . | . . . . . . . . . . . . . . . . . . . . . . . . Flight . | . . . . . . . . . . . . . . . . . . . . . . . . Fastest Speed 50 | 50 120 120 120 120 97 97 105 108 108 112 112 105 105 105 106 106 106 105 106 108 104 104 50 Average Speed 114 | 108 127 120 120 120 109 104 125 108 108 112 112 119 105 105 106 106 118 109 109 108 106 122 115 Slowest Speed 195 | 120 190 120 120 120 122 105 178 108 112 112 112 175 171 106 106 106 190 116 184 108 186 195 177 Overloaded Moves . | . . . . . . . . . . . . . . . . . . . . . . . . Propulsion Burnouts . | . . . . . . . . . . . . . . . . . . . . . . . . Robots Hopped . | . . . . . . . . . . . . . . . . . . . . . . . . Potential Cave-ins 18 | . . . . . . . . . . . . . 1 . . . . . . 2 10 5 . Cave-ins Triggered 4 | . . . . . . . . . . . . . . . . 1 . . . . . 3 . Teleports 4 | . . . . . . . . . . . . . . . . . . . 2 . 1 1 . Exploration Rate (%) 50 | 3 49 76 25 91 50 15 41 62 75 88 59 39 73 93 76 30 24 39 79 23 25 57 16 Regions Visited 23 Branch Regions 13 Pre-discovered Areas 14 | . . . . . . . . . 1 4 . 9 . . . . . . . . . . . Known Exits Taken 23 | 1 1 1 1 1 1 1 1 1 1 1 1 1 1 1 1 1 1 1 1 1 1 1 . Unknown Exits Taken . | . . . . . . . . . . . . . . . . . . . . . . . . Scrap Searched 15 | . . . . . . . . 3 10 2 . . . . . . . . . . . . . Spaces Dug 141 | . . . . . . 3 35 . 2 . . 17 21 . . . 3 1 5 7 18 28 1 Terrain Destroyed 1115 | . 27 12 36 73 14 6 117 . 2 . . 76 30 2 10 174 55 77 13 16 120 252 3 Melee 122 | . . . . . . 3 35 . 2 . . 17 2 . . . 3 1 5 7 18 28 1 Projectile 120 | . . . . . . . . . . . . 6 9 2 . 10 12 14 8 9 8 40 2 AOE 873 | . 27 12 36 73 14 3 82 . . . . 53 19 . 10 164 40 62 . . 94 184 . Terrain Rammed . | . . . . . . . . . . . . . . . . . . . . . . . . Walls Destroyed . | . . . . . . . . . . . . . . . . . . . . . . . . Machines Disabled . | . . . . . . . . . . . . . . . . . . . . . . . . Actions | -11 -10 -10 -9 -9 -8 -7 -6 -6 -6 -6 -5 -5 -5 -5 -5 -5 -4 -3 -3 -3 -2 -1 -1 --------- Run | Yrd Mat Min Mat Sto Mat Fac Fac Low Low Zio Pro Fac Ext Cet Arc Hub Fac Res Qua Sec Res Acc Com Total 20847 | 52 300 326 310 1042 997 783 1883 525 638 980 358 1653 707 536 80 300 1027 1671 1969 489 941 2906 374 Wait 2587 | . 31 . 25 296 443 231 272 32 . 55 19 170 85 27 5 24 67 48 521 57 16 147 16 Move 16146 | 43 239 310 236 633 479 506 1458 488 605 924 325 1349 548 460 71 246 828 1424 1220 366 741 2334 313 Hop . | . . . . . . . . . . . . . . . . . . . . . . . . Pick Up 116 | 2 4 1 3 7 15 8 16 1 10 . 3 10 3 2 . . 4 4 8 . 1 12 2 Fast Attach 258 | 7 2 1 7 8 11 5 8 . 1 . . 13 3 11 . 1 10 18 53 8 20 64 7 Attach 59 | . 1 . . . 3 3 6 . . . . 3 . . . 1 8 7 2 . 6 11 8 Detach 35 | . 1 . . . 1 1 6 . . . . 3 1 1 . . 3 1 7 . 2 6 2 Swap 214 | . 4 3 10 16 7 10 20 1 4 . 2 9 6 3 2 2 20 23 14 . 13 42 3 Drop 302 | . 2 3 7 15 8 5 19 1 13 . 3 16 9 15 . . 18 24 51 3 17 70 3 Fire 801 | . 15 7 21 61 26 7 19 . . . 6 27 41 9 1 24 62 100 70 44 87 167 7 Melee 254 | . . . . 2 3 7 59 2 4 1 . 42 6 4 . . 4 20 23 11 22 33 11 Ram 2 | . . . . . . . . . . . . . . . . . . . . . . . 2 Kick 29 | . 1 1 1 4 1 . . . . . . 5 . . . 2 3 . . . 4 7 . Crush . | . . . . . . . . . . . . . . . . . . . . . . . . Escape Stasis 18 | . . . . . . . . . . . . . 5 . . . . . . . . 13 . Rewire 19 | . . . . . . . . . . . . . . 4 1 . . 2 . . 12 . . Trap 7 | . . . . . . . . . 1 . . 6 . . . . . . . . . . . Miscellaneous . | . . . . . . . . . . . . . . . . . . . . . . . . Route ------- -11/Scrapyard -10/Materials (discovered 2 exits: *Min x2) -10/Mines (discovered 2 exits: *Mat x2) -9/Materials (discovered 3 exits: Min x2 / *Sto) -9/Storage (discovered 2 exits: *Mat / Rec) -8/Materials -7/Factory (discovered 2 exits: *Fac x2) -6/Factory (discovered 4 exits: *Fac x2 / *Low x2) -6/Lower Caves -6/Lower Caves (discovered 2 exits: *Fac / *Zio) -6/Zion (discovered 2 exits: Dee / *Pro) -5/Proximity Caves -5/Factory (discovered 4 exits: *Fac / *Upp x2 / *Ext) -5/Extension (discovered 3 exits: *Fac x2 / *Cet) -5/Cetus (discovered 3 exits: *Fac x2 / *Arc) -5/Archives -5/Hub_04(d) -4/Factory (discovered 2 exits: *Res / *Upp) -3/Research (discovered 3 exits: *Res / *Qua x2) -3/Quarantine (discovered 3 exits: *Res / *Sec / *Frg) -3/Section 7 -2/Research -1/Access -1/Command History --------- Turn | Location | Event 8 | -11/Scrapyard | Identified exit to Materials 8 | -11/Scrapyard | Discovered exit to Materials (range 15) 61 | -11/Scrapyard | Entered Materials 61 | -10/Materials | Evolved 1 slot: Utility x1 261 | -10/Materials | Identified exit to Mines 301 | -10/Materials | Build established: Hacker-Mutant 460 | -10/Materials | Entered Mines 463 | -10/Mines | Met a Derelict bent on vengeance 727 | -10/Mines | Identified exit to Materials 727 | -10/Mines | Discovered exit to Materials (range 11) 780 | -10/Mines | Discovered exit to Materials (range 7) 857 | -10/Mines | Entered Materials 857 | -9/Materials | Evolved 2 slots: Propulsion x2 858 | -9/Materials | Identified exit to Storage 872 | -9/Materials | Identified exit to Mines 1255 | -9/Materials | Entered Storage 1258 | -9/Storage | Identified exit to Recycling 1352 | -9/Storage | Repaired Imp. EM Shotgun 1391 | -9/Storage | Repaired Cryofiber Web 1419 | -9/Storage | Repaired Grenade Launcher 1731 | -9/Storage | Garrison activated, responded to threat 2127 | -9/Storage | Identified exit to Materials 2127 | -9/Storage | Discovered exit to Materials (range 8) 2267 | -9/Storage | Met a pair of Derelict thieves 2546 | -9/Storage | Entered Materials 2546 | -8/Materials | Evolved 2 slots: Power x1, Utility x1 3165 | -8/Materials | Identified exit to Factory 3165 | -8/Materials | Discovered exit to Factory (range 10) 3285 | -8/Materials | Repaired Imp. EM Shotgun 3318 | -8/Materials | Repaired Cooling System 3358 | -8/Materials | Repaired Carbon-fiber Leg+ 3410 | -8/Materials | Repaired Imp. EM Shotgun 3450 | -8/Materials | Repaired Carbon-fiber Leg+ 3502 | -8/Materials | Repaired Hvy. Ion Engine 3542 | -8/Materials | Repaired Cryofiber Web 3575 | -8/Materials | Repaired Maul+ 3602 | -8/Materials | Repaired Lrg. Storage Unit 3650 | -8/Materials | Entered Factory 3650 | -7/Factory | Evolved 2 slots: Utility x1, Weapon x1 4204 | -7/Factory | Identified exit to Factory 4204 | -7/Factory | Discovered exit to Factory (range 14) 4301 | -7/Factory | Repaired Cooling System 4354 | -7/Factory | Repaired Imp. EM Shotgun 4387 | -7/Factory | Repaired Imp. Aluminum Leg+ 4439 | -7/Factory | Repaired Imp. EM Shotgun 4467 | -7/Factory | Repaired Weapon Shielding 4479 | -7/Factory | Discovered exit to Factory (range 7) 4491 | -7/Factory | Entered another Factory area 4491 | -6/Factory | Evolved 2 slots: Utility x2 4535 | -6/Factory | Identified exit to Lower Caves 4590 | -6/Factory | Spotted B-75 Beast 4831 | -6/Factory | Repaired Cooling System 5109 | -6/Factory | Identified exit to Factory 5109 | -6/Factory | Discovered exit to Factory (range 9) 5572 | -6/Factory | Discovered exit to Factory (range 11) 6453 | -6/Factory | Cargo convoy interrupted 6771 | -6/Factory | Repaired Broken Cooling System 6776 | -6/Factory | Build established: Scientist-Mutant 6895 | -6/Factory | Entered Lower Caves 6953 | -6/Lower Caves | Learned Factory trap positions 7074 | -6/Lower Caves | Spotted B-75 Beast 7151 | -6/Lower Caves | Learned Factory trap positions 7180 | -6/Lower Caves | Encountered a Warlord checkpoint 7449 | -6/Lower Caves | Identified exit to Lower Caves 7449 | -6/Lower Caves | Discovered exit to Lower Caves (range 12) 7463 | -6/Lower Caves | Entered another Lower Caves area 7502 | -6/Lower Caves | Discovered exit to Factory (range 14) 7525 | -6/Lower Caves | Entered a destroyed Warlord outpost 7996 | -6/Lower Caves | Encountered a Warlord checkpoint 8005 | -6/Lower Caves | Identified exit to Zion 8122 | -6/Lower Caves | Attracted the attention of an 0b10 checkpoint 8155 | -6/Lower Caves | Entered Zion 8208 | -6/Zion | Build established: Hacker-Mutant 8234 | -6/Zion | Identified exit to Proximity Caves 8234 | -6/Zion | Discovered exit to Proximity Caves (range 13) 8248 | -6/Zion | Identified exit to Deep Caves 8424 | -6/Zion | Given A8's code to call for help 8472 | -6/Zion | Met Imprinter 8576 | -6/Zion | Learned location of Armory (-4) 8578 | -6/Zion | Learned location of Warlord (-4) 8641 | -6/Zion | Learned location of Extension (-5) 8807 | -6/Zion | Imprinted 8809 | -6/Zion | Declared Zion's savior 8989 | -6/Zion | Enhanced Grunt warped into view, answering call for help 8990 | -6/Zion | Enhanced Grunt warped into view, answering call for help 9248 | -6/Zion | Entered Proximity Caves 9248 | -5/Proximity Caves | Accompanied by 6 allies 9386 | -5/Proximity Caves | Learned location of 1 exit from Factory 9394 | -5/Proximity Caves | Spotted B-75 Beast 9407 | -5/Proximity Caves | Allies destroyed B-75 Beast 9499 | -5/Proximity Caves | Attracted the attention of an 0b10 checkpoint 9613 | -5/Proximity Caves | Discovered exit to Factory (range 12) 9630 | -5/Proximity Caves | Build established: Hacker-Tank 9657 | -5/Proximity Caves | Entered Factory 9657 | -5/Factory | Accompanied by 6 allies 9657 | -5/Factory | Evolved 2 slots: Power x1, Propulsion x1 9658 | -5/Factory | Identified exit to Upper Caves 9660 | -5/Factory | Loaded intel: 100 trap records 10063 | -5/Factory | Build established: Hacker-Mutant 10188 | -5/Factory | Zion Light squad teleported in 10403 | -5/Factory | Build established: Scientist-Mutant 10653 | -5/Factory | Repaired Carbon-fiber Leg+ 10736 | -5/Factory | Retrieved Zion intel report: Active Terminals 10802 | -5/Factory | Repaired Carbon-fiber Leg+ 10841 | -5/Factory | Repaired Imp. Weapon Shielding 10922 | -5/Factory | P-70 Sage assimilated allied BO-R04(z) 11134 | -5/Factory | Identified exit to Factory 11309 | -5/Factory | Retrieved Zion intel report: Depthwide Sectors/-5 11310 | -5/Factory | Zion Fire squad teleported in 11320 | -5/Factory | Spotted B-75 Beast 11322 | -5/Factory | Allies destroyed B-75 Beast 11388 | -5/Factory | Zion Fire squad teleported in 11684 | -5/Factory | Identified exit to Extension 11684 | -5/Factory | Discovered exit to Extension (range 6) 11710 | -5/Factory | Entered Extension 11710 | -5/Extension | Accompanied by 8 allies 11722 | -5/Extension | Disrupted transfer network 11810 | -5/Extension | Rescued a captive Derelict 11851 | -5/Extension | Rescued A7 11917 | -5/Extension | Zion Heavy squad teleported in 11929 | -5/Extension | Rescued a captive Derelict 11935 | -5/Extension | Spotted B-75 Beast 11981 | -5/Extension | Spotted B-75 Beast 11990 | -5/Extension | Destroyed B-75 Beast 11993 | -5/Extension | Destroyed B-75 Beast 12021 | -5/Extension | Discovered exit to Factory (range 3) 12162 | -5/Extension | Zion Fire squad teleported in 12216 | -5/Extension | Zion Thermal Resupply teleported in 12400 | -5/Extension | Rescued a captive Derelict 12458 | -5/Extension | Discovered exit to Factory (range 10) 12459 | -5/Extension | Identified exit to Cetus 12459 | -5/Extension | Discovered exit to Cetus (range 6) 12516 | -5/Extension | Build established: Scientist-Tank 12540 | -5/Extension | Entered Cetus 12540 | -5/Cetus | Accompanied by 14 allies (A7) 12545 | -5/Cetus | Acquired a Cetus Manufacturing Module code from A7 12554 | -5/Cetus | Spotted Cetus Guard 12555 | -5/Cetus | Spotted Cetus Guard 12557 | -5/Cetus | Spotted Cetus Guard 12557 | -5/Cetus | Spotted Cetus Guard 12563 | -5/Cetus | Destroyed Cetus Guard 12569 | -5/Cetus | Allies destroyed Cetus Guard 12576 | -5/Cetus | Allies destroyed Cetus Guard 12585 | -5/Cetus | Rewired Cetus Guard 12686 | -5/Cetus | Escorted A7 to Cetus Mainframe 12735 | -5/Cetus | Identified exit to Archives 12753 | -5/Cetus | Spotted Cetus Guard 12753 | -5/Cetus | Spotted Cetus Guard 12758 | -5/Cetus | Spotted Cetus Guard 12758 | -5/Cetus | Spotted Cetus Guard 12761 | -5/Cetus | Allies destroyed Cetus Guard 12767 | -5/Cetus | Allies destroyed Cetus Guard 12771 | -5/Cetus | Allies destroyed Cetus Guard 12778 | -5/Cetus | Allies destroyed Cetus Guard 12791 | -5/Cetus | Found Prototype Protection 12791 | -5/Cetus | Identified Zio. Weapon Casing 12800 | -5/Cetus | Lost 4 allies 12813 | -5/Cetus | Scared off Revision 17 12906 | -5/Cetus | Found a strange terminal 13011 | -5/Cetus | Discovered exit to Factory (range 15) 13128 | -5/Cetus | Entered Archives 13128 | -5/Archives | Accompanied by 8 allies (A7) 13133 | -5/Archives | Received a hacking code to weaken MAIN.C 13144 | -5/Archives | Met Zhirov 13150 | -5/Archives | Reinforcements dispatched to Archives 13170 | -5/Archives | Read partially decrypted archive contents 13172 | -5/Archives | Identified exit to Hub_04(d) 13172 | -5/Archives | Discovered exit to Hub_04(d) (range 15) 13195 | -5/Archives | Reinforcements dispatched to Archives 13197 | -5/Archives | Zhirov warped through subspace 13215 | -5/Archives | Zhirov detonated Archives 13215 | -5/Archives | Entered Hub_04(d) 13246 | -5/Hub_04(d) | Lost 7 allies 13255 | -5/Hub_04(d) | Build established: Messiah-Tank 13322 | -5/Hub_04(d) | Destroyed 7 combat bots 13327 | -5/Hub_04(d) | Crushed by falling debris 13373 | -5/Hub_04(d) | Zion Heavy squad teleported in 13391 | -5/Hub_04(d) | Zion Light squad teleported in 13454 | -5/Hub_04(d) | Retrieved Zion intel report: Prototype Stockpiles 13484 | -5/Hub_04(d) | Retrieved Zion intel report: Component Stockpiles 13485 | -5/Hub_04(d) | Zion Resource Resupply teleported in 13490 | -5/Hub_04(d) | Discovered exit to Factory (range 6) 13517 | -5/Hub_04(d) | Network Hub disabled 13547 | -5/Hub_04(d) | Retrieved Zion intel report: Emergency Access 13554 | -5/Hub_04(d) | Lost 4 allies 13555 | -5/Hub_04(d) | Spotted Lightning 13556 | -5/Hub_04(d) | Spotted Lightning 13557 | -5/Hub_04(d) | Spotted Lightning 13586 | -5/Hub_04(d) | Entered Factory 13586 | -4/Factory | Evolved 2 slots: Utility x2 13587 | -4/Factory | Loaded intel: 89 trap records 13652 | -4/Factory | Identified exit to Upper Caves 13652 | -4/Factory | Discovered exit to Upper Caves (range 15) 14050 | -4/Factory | Zion Fire squad teleported in 14119 | -4/Factory | Lost 3 allies 14126 | -4/Factory | Destroyed 8 combat bots 14138 | -4/Factory | Lost 3 parts (2u1w) 14240 | -4/Factory | Identified exit to Research 14240 | -4/Factory | Discovered exit to Research (range 11) 14355 | -4/Factory | Found Quantum Capacitor 14394 | -4/Factory | Zion Fire squad teleported in 14654 | -4/Factory | Retrieved Zion intel report: Active Terminals 14698 | -4/Factory | Build established: Scavenger-Tank 14722 | -4/Factory | Fabricated I-36 Angel? 14749 | -4/Factory | P-70 Sage assimilated allied IK-NWA(i) 14896 | -4/Factory | Spotted Executioner 14896 | -4/Factory | Entered Research 14896 | -3/Research | Evolved 2 slots: Propulsion x1, Utility x1 14915 | -3/Research | Lost 3 allies 14923 | -3/Research | Zion Infowar Resupply teleported in 14928 | -3/Research | Found Prototype Processor 14928 | -3/Research | Identified Exp. Signal Interpreter 15358 | -3/Research | Retrieved Zion intel report: Branch Access 15358 | -3/Research | Identified exit to Quarantine 15359 | -3/Research | Zion Hacker squad teleported in 15384 | -3/Research | Zion Recon squad teleported in 15916 | -3/Research | Identified exit to Research 15916 | -3/Research | Discovered exit to Research (range 5) 16009 | -3/Research | Build established: Scientist-Tank 16713 | -3/Research | Zion Heavy squad teleported in 16868 | -3/Research | Found Prototype Device 16868 | -3/Research | Identified Exp. Thermal Shield 16958 | -3/Research | Entered Quarantine 16958 | -3/Quarantine | Accompanied by 2 allies 17011 | -3/Quarantine | Found Alien Artifact 17011 | -3/Quarantine | Identified Phase Armor 17123 | -3/Quarantine | Repaired Broken Adv. Force Field 17187 | -3/Quarantine | Repaired Myomer Leg+ 17250 | -3/Quarantine | Repaired Myomer Leg+ 17314 | -3/Quarantine | Repaired Adv. Cryofiber Web 17414 | -3/Quarantine | Repaired Adv. Myomer Leg 17472 | -3/Quarantine | Repaired Adv. Cooling System 17535 | -3/Quarantine | Repaired Adv. Power Amplifier 17556 | -3/Quarantine | Build established: Hacker-Mutant 17568 | -3/Quarantine | Retrieved Zion intel report: Main Access 17633 | -3/Quarantine | Retrieved Zion intel report: Trap Installations 17656 | -3/Quarantine | Cryocooling Duct disabled 17671 | -3/Quarantine | Ambient heat levels rising (+20) 17671 | -3/Quarantine | Non-combat units ordered to evacuate 17748 | -3/Quarantine | Found Alien Artifact 17748 | -3/Quarantine | Identified Transdimensional Reconstructor 17748 | -3/Quarantine | Warped through subspace 17793 | -3/Quarantine | Found Alien Artifact 17793 | -3/Quarantine | Identified Hpw. Transdimensional Reconstructor 17793 | -3/Quarantine | Warped through subspace 17840 | -3/Quarantine | Retrieved Zion intel report: Component Stockpiles 17965 | -3/Quarantine | Garrison activated, responded to threat 18034 | -3/Quarantine | Found Transdimensional Reconstructor 18037 | -3/Quarantine | Found Transdimensional Reconstructor 18050 | -3/Quarantine | Found Alien Artifact 18050 | -3/Quarantine | Identified Dimensional Node Initializer 18050 | -3/Quarantine | Initialized slip node 18077 | -3/Quarantine | Found Dimensional Node Initializer 18077 | -3/Quarantine | Initialized slip node 18110 | -3/Quarantine | Found Alien Artifact 18110 | -3/Quarantine | Identified Core Reset Matrix 18110 | -3/Quarantine | Used Core Reset Matrix 18114 | -3/Quarantine | Detected hypermatrix surge 18114 | -3/Quarantine | Sensed 7 artifacts in vicinity 18310 | -3/Quarantine | Found Sigix Corpse 18363 | -3/Quarantine | Retrieved Zion intel report: Guard Positions 18373 | -3/Quarantine | Retrieved Zion intel report: Prototype Stockpiles 18462 | -3/Quarantine | Found Subatomic Replicator 18465 | -3/Quarantine | Used Subatomic Replicator to create Supercharged TR 18697 | -3/Quarantine | Garrison activated, responded to threat 18720 | -3/Quarantine | Found Dimensional Node Initializer 18849 | -3/Quarantine | Build established: Messiah-Mutant 18918 | -3/Quarantine | Retrieved Zion intel report: Unaware Schematics 18941 | -3/Quarantine | Discovered exit to Research (range 3) 19005 | -3/Quarantine | Found Terrabomb 19025 | -3/Quarantine | Found Terrabomb 19025 | -3/Quarantine | Used Terrabomb 19036 | -3/Quarantine | Found Terrabomb 19151 | -3/Quarantine | Spotted Fortress 19233 | -3/Quarantine | Identified exit to Section 7 19233 | -3/Quarantine | Discovered exit to Section 7 (range 5) 19233 | -3/Quarantine | Identified exit to Protoforge 19233 | -3/Quarantine | Discovered exit to Protoforge (range 6) 19239 | -3/Quarantine | Entered Section 7 19240 | -3/Section 7 | Detected hypermatrix surge 19240 | -3/Section 7 | Sensed 24 artifacts in vicinity 19283 | -3/Section 7 | Spotted S7 Guard 19327 | -3/Section 7 | Found Core Membrane 19327 | -3/Section 7 | Installed Core Membrane, gained immunity to corruption 19463 | -3/Section 7 | Found Integrated Mediator 19463 | -3/Section 7 | Installed Integrated Mediator, increased core attachment efficiency 19683 | -3/Section 7 | Repaired Particle Reactor+ 19712 | -3/Section 7 | Found Integrated Reactor 19712 | -3/Section 7 | Installed Integrated Reactor, increased core energy generation (+10) 19744 | -3/Section 7 | Retrieved Zion intel report: Component Stockpiles 19750 | -3/Section 7 | Discovered exit to Research (range 13) 19808 | -3/Section 7 | Retrieved Zion intel report: Component Schematics 19836 | -3/Section 7 | Build established: Alien-Mutant 19870 | -3/Section 7 | Entered Research 19870 | -2/Research | Evolved 2 slots: Utility x2 19934 | -2/Research | Used Terrabomb 20284 | -2/Research | Warped through subspace 20476 | -2/Research | Zion Heavy squad teleported in 20554 | -2/Research | Build established: Alien-Gunner 20669 | -2/Research | Identified exit to Access 20669 | -2/Research | Discovered exit to Access (range 6) 20678 | -2/Research | Spotted B-90 Cyclops 20682 | -2/Research | Zion Experimental squad teleported in 20704 | -2/Research | Allies destroyed B-90 Cyclops 20870 | -2/Research | First assault squad dispatched 20981 | -2/Research | Spotted B-90 Cyclops 20983 | -2/Research | Zion Experimental squad teleported in 21023 | -2/Research | Zion Heavy squad teleported in 21078 | -2/Research | Entered Access 21078 | -1/Access | Accompanied by 2 allies 21078 | -1/Access | Evolved 2 slots: Utility x2 21132 | -1/Access | Zion Zionite Resupply teleported in 21141 | -1/Access | Found Prototype Protection 21141 | -1/Access | Identified Zio. Weapon Casing 21144 | -1/Access | Found Zio. Weapon Casing 21186 | -1/Access | Zion Light squad teleported in 21251 | -1/Access | Build established: Alien-Mutant 21461 | -1/Access | Zion Demo squad teleported in 21515 | -1/Access | Zion Experimental squad teleported in 21593 | -1/Access | Build established: Messiah-Tank 21657 | -1/Access | Identified exit to Command 21657 | -1/Access | Discovered exit to Command (range 8) 21674 | -1/Access | Spotted B-99 Colossus 21674 | -1/Access | Spotted B-99 Colossus 21748 | -1/Access | Lost 6 allies 21767 | -1/Access | Crushed by falling debris 21769 | -1/Access | Used Terrabomb 21771 | -1/Access | Warped through subspace 21772 | -1/Access | Initialized slip node 21804 | -1/Access | Lost 6 parts (1p5u) 22282 | -1/Access | Retrieved Zion intel report: Guard Positions 22283 | -1/Access | Zion Demo squad teleported in 22483 | -1/Access | Found Prototype Device 22483 | -1/Access | Identified Exp. Actuator Array 22515 | -1/Access | Zion Zionite Resupply teleported in 22578 | -1/Access | First assault squad dispatched 22656 | -1/Access | Destroyed 10 combat bots 22783 | -1/Access | Found Prototype Device 22783 | -1/Access | Identified Exp. Shield Generator 22837 | -1/Access | Found Unknown Device 22837 | -1/Access | Identified Adv. Force Booster 22907 | -1/Access | Found Prototype Device 22907 | -1/Access | Identified Adv. Kinecellerator 23382 | -1/Access | Zion Experimental squad teleported in 23410 | -1/Access | Spotted B-99 Colossus 23429 | -1/Access | Allies destroyed B-99 Colossus 23512 | -1/Access | Zion Heavy squad teleported in 23522 | -1/Access | Found Prototype Protection 23522 | -1/Access | Identified Zio. Shade Armor 23715 | -1/Access | Energy Cycler disabled 23828 | -1/Access | Build established: Messiah-Gunner 23938 | -1/Access | Zion Heavy squad teleported in 24106 | -1/Access | Spotted B-99 Colossus 24106 | -1/Access | Garrison activated, responded to threat 24131 | -1/Access | Destroyed B-99 Colossus 24152 | -1/Access | Destroyed 11 combat bots 24155 | -1/Access | Lost 5 allies 24376 | -1/Access | High security lockdown imminent 24385 | -1/Access | Crushed by falling debris 24416 | -1/Access | Lost 3 parts (3u) 24456 | -1/Access | High security lockdown engaged 24547 | -1/Access | Crushed by falling debris 24626 | -1/Access | Spotted Investigator 24629 | -1/Access | Scanned by Researcher 24658 | -1/Access | Spotted Executioner 24661 | -1/Access | Destroyed Investigator 24740 | -1/Access | Destroyed Executioner 24940 | -1/Access | Entered Command 24953 | -1/Command | Build established: Alien-Mutant 25190 | -1/Command | First assault squad dispatched 25331 | -1/Command | Spotted M Guard 25332 | -1/Command | Spotted Combat Programmer 25332 | -1/Command | Spotted M Guard 25332 | -1/Command | Spotted Combat Programmer 25343 | -1/Command | Core integrity fell below 50% 25367 | -1/Command | Emitted hypermatrix ping 25372 | -1/Command | Assembled emerged from beneath the floor 25382 | -1/Command | Released all parts (6) 25389 | -1/Command | Core integrity fell below 20% 25400 | -1/Command | Destroyed by P-80 Master with Gamma Rifle Last Messages --------------- detected, Programmers report to Command Zone 3B. 25393_ C-45 Heavy ARC bursts open, deploying its payload. 25393_ S-43 Plague unfolds itself. 25394_ C-45 Heavy ARC bursts open, deploying its payload. 25394_ H-88 Terminator unfolds itself. 25394_ Core Membrane filtered system corruption (1). 25396_ P-80 Master resets E-15 Imp, system corruption cleaned. 25396_ E-15 Imp destroyed. 25397_ Core Membrane filtered system corruption (1). 25399_ Slammed into S-43 Plague. 25400_ Core Membrane filtered system corruption (1). 25400_ Slammed into S-43 Plague. [Achievement: Back For More] Map ----- +----------------------------------------------------+ | ?????????????????????????????????????????????????? | | ?????????????????????????????????????????????????? | | ?????????????????????????????????????????????????? | | ?????????????????????????????????????????????????? | | ?????????????????????????????????????????????????? | | ?????????????????????????????????????????????????? | | ?????????????????????????????????????????????????? | | ?????????????????????????????????????????????????? | | ?????????????????????????????????????????????????? | | ???????????????????????? ???????????????????????? | | ???????????????????????? ???????????????????????? | | ???????????????????????? ??? ??? ?????????????? | | ???????????????????????# ??# ??? #????????????? | | ???????????????????????#gg??# ??? #????????????? | | ???????????????????????#gg??# ??? #????????????? | | ???????????????????????#gs### ### ##???????????? | | ??????????????????????? gg%# # #???????????? | | ??????????????????????? gbg# # #???????????? | | ????????????????????????xlh# # #???????????? | | ????????????????????????xpp# # #???????????? | | ????????????????????????shs? # ????????????? | | ????????????????????????lse?? ? ?????????????? | | ????????????????????????#s#??#/#?#"######????????? | | ????????????????????????#s#??# ### # # #????????? | | ????????????????????????#s#??# # #????????? | | ????????????????????????#@#### #????????? | | ????????????????????????#spp [*] #????????? | | ????????????????????????###### # !!* ###????????? | | ?????????????????????????????## !!& #??????????? | | ?????????????????????????????# #??????????? | | ????????????????????????????#### # #??????????? | | ????????????????????????????# #??????????? | | ????????????????????????????# * #??????????? | | ????????????????????????????## ##??????????? | | ?????????????????????????????# #??????????? | | ????????????????????????????## ##??????????? | | ????????????????????????????# ##??????????? | | ???????????????????????????# #??????????? | | ???????????????????????????# #??????????? | | ???????????????????????????## # #??????????? | | ???????????????????????????# # #??????????? | | ???????????????????????????# #??????????? | | ???????????????????????????## #??????????? | | ????????????????????????????# #??????????? | | ????????????????????????????# # #??????????? | | ????????????????????????????# #??????????? | | ????????????????????????????# ##?#????????? | | ????????????????????????????# # ## ####?????? | | ????????????????????????#"""## # #####?# | | ????????????????????????# # #?# | +----------------------------------------------------+ Best States ------------- Heat Dissipation 121 Energy Generation 93 Energy Capacity 1450 Matter Stores 550 Matter Capacity 550 Sight Range 16 Robot Scan Range 16 Terrain Scan Density 10 Jamming Range 16 Power Amplification 30 Additional Mass Support 9 Base Temperature (-) 200 Armor Coverage 225 Resistance: KI 65 Resistance: TH 65 Resistance: EX 65 Resistance: EM 65 Resistance: I 65 Resistance: S 65 Resistance: P 65 Utility Shielding 66 Weapon Shielding 100 Phase Shifting 15 Evasion (%) 85 Targeting Accuracy 22 Target Analysis 8 Matter Filtering 50 Energy Filtering 30 Particle Charging 30 Offensive Hacking 20 Defensive Hacking 14 Item Schematics ----------------- Imp. Signal Interpreter | -3/Section 7 | Z-intel Micro-nuke Launcher | -3/Section 7 | Z-intel Imp. Datajack | -3/Section 7 | Z-intel Particle Charger | -3/Section 7 | Z-intel Imp. Shield Generator | -3/Section 7 | Z-intel Recalibrator | -3/Section 7 | Z-intel Arm. Medium Treads | -3/Section 7 | Z-intel Dispersion Rifle | -3/Section 7 | Z-intel Adv. Thermal Shield | -3/Section 7 | Z-intel Imp. Force Field | -3/Section 7 | Z-intel Launcher Loader | -3/Section 7 | Z-intel Imp. Light Armor Plating | -3/Section 7 | Z-intel Imp. Target Analyzer | -3/Section 7 | Z-intel Lrg. Storage Unit | -3/Section 7 | Z-intel Core Analyzer | -3/Section 7 | Z-intel Robot Schematics ------------------ A-27 Freighter | -3/Quarantine | Z-intel A-02 Transporter | -3/Quarantine | Z-intel Y-72 Warden | -3/Quarantine | Z-intel M-30 Cleanser | -3/Quarantine | Z-intel Fabricated ------------ I-36 Angel | x1 | -4/Factory Repaired ---------- Imp. EM Shotgun | 55% | -9/Storage Cryofiber Web | 66% | -9/Storage Grenade Launcher | 53% | -9/Storage Imp. EM Shotgun | 47% | -8/Materials Cooling System | 42% | -8/Materials Carbon-fiber Leg | 65% | -8/Materials Imp. EM Shotgun | 75% | -8/Materials Carbon-fiber Leg | 80% | -8/Materials Hvy. Ion Engine | 79% | -8/Materials Cryofiber Web | 80% | -8/Materials Maul | 92% | -8/Materials Lrg. Storage Unit | 97% | -8/Materials Cooling System | 90% | -7/Factory Imp. EM Shotgun | 92% | -7/Factory Imp. Aluminum Leg | 85% | -7/Factory Imp. EM Shotgun | 95% | -7/Factory Weapon Shielding | 96% | -7/Factory Cooling System | 28% | -6/Factory Cooling System | 20% | -6/Factory | Broken Carbon-fiber Leg | 4% | -5/Factory Carbon-fiber Leg | 23% | -5/Factory Imp. Weapon Shielding | 37% | -5/Factory Adv. Force Field | 34% | -3/Quarantine | Broken Myomer Leg | 38% | -3/Quarantine Myomer Leg | 38% | -3/Quarantine Adv. Cryofiber Web | 52% | -3/Quarantine Adv. Myomer Leg | 71% | -3/Quarantine Adv. Cooling System | 68% | -3/Quarantine Adv. Power Amplifier | 32% | -3/Quarantine Particle Reactor | 31% | -3/Section 7 Studied --------- Particle Reactor | -3/Quarantine | Hacked Biometal Leg | -3/Quarantine | Hacked Alien Tech Used ----------------- Phase Armor Transdimensional Reconstructor High-powered Transdimensional Reconstructor Dimensional Node Initializer Core Reset Matrix Subatomic Replicator Terrabomb Core Membrane Integrated Mediator Integrated Reactor Supercharged TR Achievements -------------- A Problem For Future Me Alien Roots Back For More Botjacking Construction Begets Destruction DATA ERROR: Steam Global Achievement% DIY Cooler Decoder Ring Ew, Corruption Explosive Keycard Fancy Inventory For Emergencies Only Freeware Ghost 'Em Hammer Time Heavy Suspicion Hot Stuff I Have A Map? I Laugh At Your Crits Item+ Jackpot Live, Flee, And Rebuild Main Advantage My Business Is Booming Nope Organ Harvest Overwhelming Physics Protects Professional Mechanic Sprinter There's More Where That Came From Throw Away The Key Well Done Challenges ------------ None Game ------ Seed SlugSwarmAxe Manual? 0 Play Time 06:41:39 Cumulative 108.1 hours Start 2025.11.09 @ 21:37:36 End 2025.11.12 @ 22:23:43 Sessions 9 Manual Loads 0 Difficulty Explorer Special Mode None Game No. 53 Rogue 29 Adventurer 9 Explorer 15 Win Type - Total 7 Types 4/1/0/0/0/0/0/0/2/0 Lore% 41 Gallery% 55 Achievement% 37 Wizard Run 0 Options --------- Layout 1 ASCII 0 Keyboard 0 Movement Mouse Keybinds 0 Fullscreen 2 Font 32/Terminus Map View 50x35 Zoom Use 0% Tactical HUD 1 Map Filters NONE Filters NONE Steam 1 RUN: 8223da61-6437-4d9e-b83e-0c4d02eb6821